fUST/lending_fUST_20240213
["ID","MTS","AMOUNT","RATE_DAILY","PERIOD"]
[313860164,1707755438952,-900.72,0.00019178,2]
[313860166,1707755438962,-724.07,0.00019178,2]
[313860168,1707755438971,-8088.78,0.00019178,2]
[313860170,1707755438980,-1165.2214989,0.00019421,2]
[313860172,1707755438992,-3320.2,0.00019442,3]
[313860175,1707755439004,-1859.09579688,0.0001945,2]
[313860176,1707755439018,-2613.26506909,0.0001945,2]
[313860179,1707755439032,-155.24050438,0.0001945,2]
[313860181,1707755439041,-154.8915759,0.0001945,2]
[313860183,1707755439059,-678.94138998,0.00019451,2]
[313860185,1707755439068,-2107.57320617,0.00019451,2]
[313860187,1707755439077,-2560.97,0.00019452,2]
[313860199,1707755439168,-3957.8,0.00019452,2]
[313860201,1707755439198,-1710.68,0.00019452,2]
[313860203,1707755439208,-1122.42,0.00019452,2]
[313860205,1707755439218,-1267.11,0.00019452,2]
[313860207,1707755439227,-500.0,0.00019452,2]
[313860209,1707755439236,-2095.57,0.00019452,2]
[313860211,1707755439245,-5964.16,0.00019452,2]
[313860213,1707755439254,-783.18,0.00019452,2]
[313860215,1707755439263,-500.0,0.00019452,2]
[313860217,1707755439273,-741.79,0.00019452,2]
[313860219,1707755439284,-1008.94,0.00019452,2]
[313860221,1707755439293,-500.0,0.00019452,2]
[313860223,1707755439303,-500.0,0.00019452,2]
[313860225,1707755439312,-932.64,0.00019452,2]
[313860227,1707755439322,-7073.91,0.00019452,2]
[313860229,1707755439332,-500.0,0.00019452,2]
[313860231,1707755439341,-500.0,0.00019452,2]
[313860234,1707755439350,-4768.75,0.00019452,2]
[313860235,1707755439360,-3715.08,0.00019452,2]
[313860238,1707755439370,-900.72,0.00019452,2]
[313860240,1707755439380,-724.07,0.00019452,2]
[313860241,1707755439389,-8088.78,0.00019452,2]
[313860243,1707755439399,-2560.97,0.00019726,2]
[313860246,1707755439410,-3957.8,0.00019726,2]
[313860248,1707755439420,-1710.68,0.00019726,2]
[313860250,1707755439431,-1122.42,0.00019726,2]
[313860252,1707755439440,-1267.11,0.00019726,2]
[313860254,1707755439449,-500.0,0.00019726,2]
[313860256,1707755439458,-2095.57,0.00019726,2]
[313860258,1707755439467,-5964.16,0.00019726,2]
[313860260,1707755439477,-783.18,0.00019726,2]
[313860261,1707755439487,-500.0,0.00019726,2]
[313860264,1707755439497,-741.79,0.00019726,2]
[313860265,1707755439510,-1008.94,0.00019726,2]
[313860267,1707755439522,-500.0,0.00019726,2]
[313860270,1707755439533,-500.0,0.00019726,2]
[313860271,1707755439544,-932.64,0.00019726,2]
[313860273,1707755439553,-7073.91,0.00019726,2]
[313860275,1707755439564,-500.0,0.00019726,2]
[313860278,1707755439574,-216.08215852,0.00019726,2]
[313860279,1707755439585,-4768.75,0.00019726,2]
[313860281,1707755439596,-3715.08,0.00019726,2]
[313860283,1707755439607,-900.72,0.00019726,2]
[313860285,1707755439620,-724.07,0.00019726,2]
[313860287,1707755439629,-8088.78,0.00019726,2]
[313860289,1707755439638,-500.0,0.00019986,2]
[313860291,1707755439647,-500.0,0.00019987,2]
[313860293,1707755439656,-500.0,0.00019987,2]
[313860295,1707755439665,-500.0,0.00019987,2]
[313860297,1707755439674,-500.0,0.00019987,2]
[313860299,1707755439683,-500.0,0.00019994,2]
[313860301,1707755439692,-2560.97,0.0002,2]
[313860303,1707755439701,-3957.8,0.0002,2]
[313860305,1707755439710,-1710.68,0.0002,2]
[313860307,1707755439719,-1122.42,0.0002,2]
[313860309,1707755439728,-1267.11,0.0002,2]
[313860311,1707755439737,-500.0,0.0002,2]
[313860313,1707755439746,-2095.57,0.0002,2]
[313860315,1707755439755,-448.53348072,0.0002,2]
[313860318,1707755439768,-5515.62651928,0.0002,2]
[313860320,1707755439778,-783.18,0.0002,2]
[313860322,1707755439787,-500.0,0.0002,2]
[313860324,1707755439796,-741.79,0.0002,2]
[313860326,1707755439805,-1008.94,0.0002,2]
[313860328,1707755439814,-500.0,0.0002,2]
[313860330,1707755439823,-500.0,0.0002,2]
[313860332,1707755439832,-932.64,0.0002,2]
[313860334,1707755439842,-7073.91,0.0002,2]
[313860336,1707755439851,-618.58573866,0.0002,2]
[313860338,1707755439860,-474.39738427,0.0002,2]
[313860340,1707755439875,-4294.35261573,0.0002,2]
[313860342,1707755439884,-3715.08,0.0002,2]
[313860344,1707755439895,-900.72,0.0002,2]
[313860346,1707755439904,-724.07,0.0002,2]
[313860348,1707755439913,-8088.78,0.0002,2]
[313860350,1707755439923,-200.0,0.00020136,2]
[313860352,1707755439932,-168.24978825,0.00020171,2]
[313860354,1707755439941,-1077.94224831,0.0002026,2]
[313860356,1707755439951,-500.0,0.00020261,2]
[313860358,1707755439960,-500.0,0.00020261,2]
[313860360,1707755439968,-388.7152164,0.00020261,2]
[313860362,1707755439977,-261.17070193,0.00020272,2]
[313860364,1707755439986,-19929.20121893,0.00020272,2]
[313860366,1707755439995,-2823.5844193,0.00020272,2]
[313860368,1707755440004,-2560.97,0.00020273,2]
[313860370,1707755440012,-3957.8,0.00020273,2]
[313860372,1707755440021,-1710.68,0.00020273,2]
[313860374,1707755440032,-1122.42,0.00020273,2]
[313860376,1707755440041,-1267.11,0.00020273,2]
[313860378,1707755440050,-500.0,0.00020273,2]
[313860380,1707755440059,-2095.57,0.00020273,2]
[313860383,1707755440068,-5964.16,0.00020273,2]
[313860385,1707755440077,-783.18,0.00020273,2]
[313860387,1707755440087,-500.0,0.00020273,2]
[313860389,1707755440096,-741.79,0.00020273,2]
[313860391,1707755440106,-1008.94,0.00020273,2]
[313860393,1707755440116,-500.0,0.00020273,2]
[313860395,1707755440126,-500.0,0.00020273,2]
[313860397,1707755440136,-932.64,0.00020273,2]
[313860399,1707755440145,-7073.91,0.00020273,2]
[313860401,1707755440155,-4768.75,0.00020273,2]
[313860403,1707755440164,-3715.08,0.00020273,2]
[313860406,1707755440175,-900.72,0.00020273,2]
[313860408,1707755440185,-724.07,0.00020273,2]
[313860409,1707755440194,-8088.78,0.00020273,2]
[313860411,1707755440203,-250.0,0.00020534,2]
[313860413,1707755440212,-500.0,0.00020535,2]
[313860415,1707755440221,-500.0,0.00020535,2]
[313860417,1707755440234,-500.0,0.00020535,2]
[313860419,1707755440243,-166.65869115,0.00020535,2]
[313860425,1707755440286,-1291.61,0.00020535,2]
[313860540,1707755441602,-3015.99338669,0.00020535,2]
[313860571,1707755441890,-1224.47,0.00019178,2]
[313860573,1707755441900,-2766.83,0.00019442,3]
[313860575,1707755441909,-1224.47,0.00019452,2]
[313860577,1707755441919,-1224.47,0.00019726,2]
[313860594,1707755442063,-1224.47,0.0002,2]
[313860596,1707755442072,-1224.47,0.00020273,2]
[313860598,1707755442082,-5855.42842706,0.00020535,2]
[313860600,1707755442091,-684.648274,0.00020535,2]
[313860602,1707755442100,-84503.76481091,0.00020535,2]
[313860604,1707755442112,-5201.69915455,0.00020535,2]
[313860606,1707755442124,-1979.42258337,0.00020535,2]
[313860608,1707755442135,-31336.96565007,0.00020535,2]
[313860610,1707755442147,-27421.16676005,0.00020535,2]
[313860612,1707755442159,-1401.49993163,0.00020535,2]
[313860938,1707755445881,-1479.61017428,0.00020535,2]
[313860939,1707755445893,-7241.48161,0.00020535,2]
[313860940,1707755445906,-14374.87636352,0.00020535,2]
[313860941,1707755445918,-4591.87279475,0.00020535,2]
[313860943,1707755445929,-5018.61224055,0.00020535,2]
[313860990,1707755446633,-16094.25622,0.00020535,2]
[313860993,1707755446645,-254.1276372,0.00020535,2]
[313861215,1707755448870,-37467.97744527,0.00020535,2]
[313862018,1707755473463,150.0,0.00021,30]
[313862023,1707755523781,174.381098,0.00027397,120]
[313862043,1707755996148,1291.59702042,0.000173,2]
[313862045,1707756006704,174.381098,0.00027397,120]
[313862047,1707756046363,-24108.31413123,0.00017301,2]
[313862050,1707756088369,5000.0,0.000181,4]
[313862091,1707756100572,5000.0,0.000181,4]
[313862346,1707756122849,5000.0,0.000181,4]
[313862350,1707756134608,5000.0,0.000181,4]
[313862353,1707756147259,5000.0,0.000181,4]
[313862358,1707756159696,1164.63916795,0.000181,4]
[313862364,1707756168594,154.79876161,0.00017258,3]
[313862365,1707756172154,165.33464057,0.00017285,2]
[313862374,1707756187678,1291.59702042,0.000173,2]
[313862375,1707756188647,154.79876161,0.00017258,3]
[313862384,1707756202595,154.79876161,0.00017258,3]
[313862396,1707756222576,154.79876161,0.00017258,3]
[313862397,1707756224137,10329.6905049,0.00017258,2]
[313862401,1707756227545,154.79876161,0.00017258,2]
[313862402,1707756228546,684.648274,0.00017258,2]
[313862410,1707756239469,230.65306503,0.00017258,2]
[313862411,1707756240151,3648.52279012,0.00017258,2]
[313862416,1707756244584,154.79876161,0.00017258,3]
[313862417,1707756248551,684.648274,0.00017258,2]
[313862423,1707756266561,210.51749344,0.00017258,2]
[313862425,1707756270602,154.79876161,0.00017258,3]
[313862432,1707756288591,154.79876161,0.00017258,3]
[313862437,1707756304603,154.79876161,0.00017258,3]
[313862441,1707756320603,154.79876161,0.00017258,3]
[313862448,1707756338603,154.79876161,0.00017258,3]
[313862452,1707756356616,154.79876161,0.00017258,3]
[313862457,1707756372618,154.79876161,0.00017258,3]
[313862459,1707756381222,1291.59702042,0.000173,2]
[313862461,1707756392620,154.78330338,0.00017258,3]
[313862465,1707756412674,154.78330338,0.00017258,3]
[313862471,1707756430630,154.78330338,0.00017258,3]
[313862473,1707756436083,-791.68586877,0.00017301,2]
[313862474,1707756436103,-6429.8289295,0.00017385,2]
[313862475,1707756436124,-210.422389,0.00017563,2]
[313862476,1707756436145,-1485.1533176,0.00017623,2]
[313862477,1707756436167,-154.8915759,0.0001774,2]
[313862478,1707756436187,-651.85853467,0.0001774,2]
[313862479,1707756436208,-159.896641,0.00018168,2]
[313862480,1707756436229,-200.0,0.00018626,2]
[313862481,1707756436250,-622.27908863,0.000189,2]
[313862482,1707756436271,-162.20448364,0.00019078,2]
[313862483,1707756436292,-1859.09579688,0.00019176,2]
[313862484,1707756436312,-1291.59702042,0.00019177,2]
[313862485,1707756436334,-620.02,0.00019178,2]
[313862486,1707756436355,-500.0,0.00019178,2]
[313862487,1707756436379,-798.74,0.00019178,2]
[313862488,1707756436402,-500.0,0.00019178,2]
[313862489,1707756436424,-587.25,0.00019178,2]
[313862490,1707756436446,-5702.87,0.00019178,2]
[313862491,1707756436467,-500.0,0.00019178,2]
[313862492,1707756436489,-500.0,0.00019178,2]
[313862493,1707756436512,-3775.93,0.00019178,2]
[313862494,1707756436533,-566.56,0.00019178,2]
[313862495,1707756436556,-500.0,0.00019178,2]
[313862496,1707756436579,-4721.63,0.00019178,2]
[313862497,1707756436602,-738.34,0.00019178,2]
[313862498,1707756436624,-573.22,0.00019178,2]
[313862499,1707756436785,-500.0,0.00019178,2]
[313862500,1707756436808,-500.0,0.00019178,2]
[313862501,1707756436830,-500.0,0.00019178,2]
[313862502,1707756436852,-505.23460937,0.00019178,2]
[313862503,1707756436874,-500.0,0.00019178,2]
[313862504,1707756436898,-840.61,0.00019178,2]
[313862505,1707756436919,-500.0,0.00019178,2]
[313862506,1707756436940,-500.0,0.00019178,2]
[313862507,1707756436962,-500.0,0.00019178,2]
[313862508,1707756436983,-260.85461635,0.00019178,2]
[313862509,1707756437004,-500.0,0.00019178,2]
[313862510,1707756437026,-5344.89525809,0.00019178,2]
[313862513,1707756449114,-154.78330338,0.00019177,3]
[313862514,1707756449135,-2194.02474191,0.00019178,2]
[313862515,1707756449159,-500.0,0.00019178,2]
[313862516,1707756449181,-500.0,0.00019178,2]
[313862517,1707756449202,-3498.18,0.00019178,2]
[313862518,1707756449222,-500.0,0.00019178,2]
[313862519,1707756449243,-2325.07,0.00019178,2]
[313862520,1707756449263,-500.0,0.00019178,2]
[313862521,1707756449282,-408.62945701,0.00019178,2]
[313862522,1707756449303,-1442.97,0.00019178,2]
[313862523,1707756449324,-3592.44,0.00019178,2]
[313862524,1707756449346,-500.0,0.00019178,2]
[313862525,1707756449370,-1066.33,0.00019178,2]
[313862526,1707756449396,-500.0,0.00019178,2]
[313862527,1707756449420,-500.0,0.00019178,2]
[313862528,1707756449442,-1016.86,0.00019178,2]
[313862529,1707756449467,-1774.88,0.00019178,2]
[313862530,1707756449489,-641.18,0.00019178,2]
[313862531,1707756449511,-168.923902,0.00019178,2]
[313862532,1707756449534,-166.666666,0.00019178,2]
[313862533,1707756449554,-1035.09,0.00019441,2]
[313862534,1707756449575,-698.34,0.00019441,2]
[313862535,1707756449596,-1360.26,0.00019441,2]
[313862536,1707756449616,-500.0,0.00019441,2]
[313862537,1707756449636,-500.0,0.00019441,2]
[313862538,1707756449659,-500.0,0.00019441,2]
[313862539,1707756449680,-500.0,0.00019441,2]
[313862540,1707756449702,-1662.19,0.00019442,3]
[313862541,1707756449723,-500.0,0.00019451,2]
[313862542,1707756449743,-477.88083194,0.00019451,2]
[313862543,1707756449763,-500.0,0.00019451,2]
[313862545,1707756449783,-500.0,0.00019451,2]
[313862546,1707756449802,-500.0,0.00019451,2]
[313862547,1707756449821,-500.0,0.00019451,2]
[313862548,1707756449841,-500.0,0.00019451,2]
[313862549,1707756449865,-597.5,0.00019452,2]
[313862550,1707756449886,-798.74,0.00019452,2]
[313862551,1707756449910,-587.25,0.00019452,2]
[313862552,1707756449931,-5702.87,0.00019452,2]
[313862553,1707756449951,-3775.93,0.00019452,2]
[313862554,1707756449973,-566.56,0.00019452,2]
[313862555,1707756449994,-500.0,0.00019452,2]
[313862556,1707756450016,-4721.63,0.00019452,2]
[313862557,1707756450037,-738.34,0.00019452,2]
[313862558,1707756450058,-573.22,0.00019452,2]
[313862559,1707756450078,-500.0,0.00019452,2]
[313862560,1707756450099,-840.61,0.00019452,2]
[313862561,1707756450119,-500.0,0.00019452,2]
[313862562,1707756450142,-500.0,0.00019452,2]
[313862563,1707756450162,-7538.92,0.00019452,2]
[313862564,1707756450186,-500.0,0.00019452,2]
[313862565,1707756450209,-3498.18,0.00019452,2]
[313862566,1707756450230,-500.0,0.00019452,2]
[313862567,1707756450252,-2325.07,0.00019452,2]
[313862568,1707756450272,-1442.97,0.00019452,2]
[313862569,1707756450294,-3592.44,0.00019452,2]
[313862570,1707756450314,-1066.33,0.00019452,2]
[313862571,1707756450337,-500.0,0.00019452,2]
[313862572,1707756450358,-500.0,0.00019452,2]
[313862573,1707756450378,-1016.86,0.00019452,2]
[313862574,1707756450404,-1774.88,0.00019452,2]
[313862575,1707756450427,-641.18,0.00019452,2]
[313862576,1707756450449,-1035.09,0.00019715,2]
[313862577,1707756450472,-698.34,0.00019715,2]
[313862578,1707756450494,-1360.26,0.00019715,2]
[313862579,1707756450517,-500.0,0.00019715,2]
[313862580,1707756450544,-500.0,0.00019715,2]
[313862581,1707756450568,-500.0,0.00019715,2]
[313862582,1707756450704,-500.0,0.00019725,2]
[313862583,1707756450727,-500.0,0.00019725,2]
[313862584,1707756450749,-599.95,0.00019725,2]
[313862585,1707756450770,-500.0,0.00019725,2]
[313862586,1707756450793,-500.0,0.00019725,2]
[313862587,1707756450813,-500.0,0.00019725,2]
[313862588,1707756450838,-798.74,0.00019726,2]
[313862589,1707756450858,-587.25,0.00019726,2]
[313862590,1707756450879,-5702.87,0.00019726,2]
[313862591,1707756450905,-3775.93,0.00019726,2]
[313862592,1707756450927,-566.56,0.00019726,2]
[313862593,1707756450951,-500.0,0.00019726,2]
[313862594,1707756450975,-4721.63,0.00019726,2]
[313862595,1707756450999,-738.34,0.00019726,2]
[313862596,1707756451021,-573.22,0.00019726,2]
[313862597,1707756451044,-500.0,0.00019726,2]
[313862598,1707756451065,-840.61,0.00019726,2]
[313862599,1707756451086,-500.0,0.00019726,2]
[313862600,1707756451108,-7538.92,0.00019726,2]
[313862601,1707756451130,-500.0,0.00019726,2]
[313862602,1707756451157,-3498.18,0.00019726,2]
[313862603,1707756451179,-2325.07,0.00019726,2]
[313862604,1707756451200,-1442.97,0.00019726,2]
[313862605,1707756451221,-3592.44,0.00019726,2]
[313862606,1707756451242,-1066.33,0.00019726,2]
[313862607,1707756451268,-500.0,0.00019726,2]
[313862608,1707756451290,-500.0,0.00019726,2]
[313862609,1707756451311,-1016.86,0.00019726,2]
[313862610,1707756451332,-1774.88,0.00019726,2]
[313862611,1707756451352,-641.18,0.00019726,2]
[313862612,1707756451372,-166.666666,0.00019926,2]
[313862613,1707756451395,-1035.09,0.00019989,2]
[313862614,1707756451416,-698.34,0.00019989,2]
[313862615,1707756451436,-1360.26,0.00019989,2]
[313862616,1707756451457,-500.0,0.00019989,2]
[313862617,1707756451476,-500.0,0.00019989,2]
[313862618,1707756451496,-500.0,0.00019989,2]
[313862619,1707756451515,-500.0,0.00019999,2]
[313862620,1707756451535,-500.0,0.00019999,2]
[313862621,1707756451555,-500.0,0.00019999,2]
[313862622,1707756451575,-250.0,0.00019999,2]
[313862623,1707756451597,-500.0,0.00019999,2]
[313862624,1707756451618,-344.84267033,0.00019999,2]
[313862625,1707756451642,-798.74,0.0002,2]
[313862626,1707756451665,-587.25,0.0002,2]
[313862627,1707756451687,-5702.87,0.0002,2]
[313862628,1707756451712,-3775.93,0.0002,2]
[313862629,1707756451732,-566.56,0.0002,2]
[313862630,1707756451753,-500.0,0.0002,2]
[313862631,1707756451775,-4721.63,0.0002,2]
[313862632,1707756451798,-738.34,0.0002,2]
[313862633,1707756451819,-573.22,0.0002,2]
[313862634,1707756451840,-232.15963997,0.0002,2]
[313862635,1707756451861,-500.0,0.0002,2]
[313862636,1707756451882,-840.61,0.0002,2]
[313862637,1707756451904,-681.44085564,0.0002,2]
[313862638,1707756451924,-6989.72665718,0.0002,2]
[313862639,1707756451945,-6304.53229004,0.0002,2]
[313862640,1707756451969,-500.0,0.0002,2]
[313862641,1707756451989,-2092.20651111,0.0002,2]
[313862642,1707756452009,-169.50613981,0.0002,2]
[313862643,1707756452030,-1202.57082301,0.0002,2]
[313862644,1707756452050,-157.04477798,0.0002,2]
[313862645,1707756452071,-324.28768484,0.0002,2]
[313862646,1707756452093,-7538.92,0.0002,2]
[313862647,1707756452115,-500.0,0.0002,2]
[313862648,1707756452137,-3498.18,0.0002,2]
[313862649,1707756452160,-2325.07,0.0002,2]
[313862650,1707756452181,-1442.97,0.0002,2]
[313862651,1707756452201,-3592.44,0.0002,2]
[313862652,1707756452224,-1066.33,0.0002,2]
[313862653,1707756452246,-500.0,0.0002,2]
[313862654,1707756452269,-1016.86,0.0002,2]
[313862655,1707756452291,-1774.88,0.0002,2]
[313862656,1707756452313,-641.18,0.0002,2]
[313862657,1707756452332,-1035.09,0.00020263,2]
[313862658,1707756452352,-698.34,0.00020263,2]
[313862659,1707756452373,-1360.26,0.00020263,2]
[313862660,1707756452394,-500.0,0.00020263,2]
[313862661,1707756452414,-500.0,0.00020263,2]
[313862662,1707756452435,-205.42475206,0.00020273,2]
[313862663,1707756452454,-155.53545964,0.00020273,2]
[313862664,1707756452474,-500.0,0.00020273,2]
[313862665,1707756452494,-500.0,0.00020273,2]
[313862666,1707756452515,-207.0,0.00020273,2]
[313862667,1707756452536,-798.74,0.00020273,2]
[313862668,1707756452556,-500.0,0.00020273,2]
[313862669,1707756452578,-587.25,0.00020273,2]
[313862670,1707756452599,-5702.87,0.00020273,2]
[313862672,1707756452620,-3775.93,0.00020273,2]
[313862673,1707756452642,-566.56,0.00020273,2]
[313862674,1707756452663,-500.0,0.00020273,2]
[313862675,1707756452684,-4721.63,0.00020273,2]
[313862676,1707756452709,-738.34,0.00020273,2]
[313862677,1707756452729,-573.22,0.00020273,2]
[313862678,1707756452751,-500.0,0.00020273,2]
[313862679,1707756452774,-840.61,0.00020273,2]
[313862680,1707756452794,-219.50012799,0.00020273,2]
[313862681,1707756452815,-7538.92,0.00020273,2]
[313862682,1707756452836,-500.0,0.00020273,2]
[313862683,1707756452857,-3498.18,0.00020273,2]
[313862684,1707756452878,-2325.07,0.00020273,2]
[313862685,1707756452901,-1442.97,0.00020273,2]
[313862686,1707756452922,-3592.44,0.00020273,2]
[313862687,1707756452943,-1066.33,0.00020273,2]
[313862688,1707756452964,-500.0,0.00020273,2]
[313862689,1707756452984,-1016.86,0.00020273,2]
[313862690,1707756453004,-1774.88,0.00020273,2]
[313862691,1707756453025,-641.18,0.00020273,2]
[313862692,1707756453045,-200.0,0.0002033,2]
[313862693,1707756453066,-200.0,0.0002033,2]
[313862694,1707756453087,-200.0,0.0002033,2]
[313862695,1707756453107,-400.0,0.0002033,2]
[313862696,1707756453128,-280.0,0.00020489,2]
[313862697,1707756453152,-882.51713389,0.00020533,2]
[313862698,1707756453172,-1035.09,0.00020537,2]
[313862699,1707756453192,-698.34,0.00020537,2]
[313862700,1707756453212,-1360.26,0.00020537,2]
[313862701,1707756453232,-500.0,0.00020537,2]
[313862702,1707756453253,-436.31661811,0.00020537,2]
[313862703,1707756453273,-500.0,0.00020547,2]
[313862704,1707756453294,-500.0,0.00020547,2]
[313862705,1707756453315,-798.74,0.00020547,2]
[313862706,1707756453338,-500.0,0.00020547,2]
[313862707,1707756453359,-587.25,0.00020547,2]
[313862708,1707756453380,-5702.87,0.00020547,2]
[313862709,1707756453402,-3775.93,0.00020547,2]
[313862710,1707756453422,-566.56,0.00020547,2]
[313862711,1707756453549,-500.0,0.00020547,2]
[313862712,1707756453573,-4721.63,0.00020547,2]
[313862713,1707756453595,-738.34,0.00020547,2]
[313862714,1707756453616,-573.22,0.00020547,2]
[313862715,1707756453637,-500.0,0.00020547,2]
[313862716,1707756453660,-840.61,0.00020547,2]
[313862717,1707756453684,-7538.92,0.00020547,2]
[313862718,1707756453711,-500.0,0.00020547,2]
[313862719,1707756453745,-3498.18,0.00020547,2]
[313862720,1707756453773,-2325.07,0.00020547,2]
[313862721,1707756453797,-1442.97,0.00020547,2]
[313862722,1707756453819,-3592.44,0.00020547,2]
[313862723,1707756453841,-1066.33,0.00020547,2]
[313862724,1707756453862,-500.0,0.00020547,2]
[313862725,1707756453884,-1016.86,0.00020547,2]
[313862726,1707756453907,-1774.88,0.00020547,2]
[313862727,1707756453928,-641.18,0.00020547,2]
[313862728,1707756453948,-166.666666,0.00020674,2]
[313862729,1707756453969,-500.0,0.00020684,2]
[313862730,1707756453989,-1134.47971593,0.00020722,2]
[313862731,1707756454010,-1035.09,0.00020811,2]
[313862732,1707756454038,-698.34,0.00020811,2]
[313862733,1707756454059,-1360.26,0.00020811,2]
[313862734,1707756454079,-467.05,0.00020811,2]
[313862735,1707756454100,-500.0,0.00020821,2]
[313862736,1707756454119,-500.0,0.00020821,2]
[313862737,1707756454142,-798.74,0.00020821,2]
[313862738,1707756454162,-500.0,0.00020821,2]
[313862739,1707756454182,-587.25,0.00020821,2]
[313862740,1707756454201,-5702.87,0.00020821,2]
[313862741,1707756454222,-3775.93,0.00020821,2]
[313862742,1707756454242,-566.56,0.00020821,2]
[313862743,1707756454262,-500.0,0.00020821,2]
[313862744,1707756454283,-4721.63,0.00020821,2]
[313862745,1707756454304,-738.34,0.00020821,2]
[313862746,1707756454324,-573.22,0.00020821,2]
[313862747,1707756454345,-500.0,0.00020821,2]
[313862748,1707756454366,-840.61,0.00020821,2]
[313862749,1707756454387,-7538.92,0.00020821,2]
[313862750,1707756454409,-500.0,0.00020821,2]
[313862751,1707756454430,-3498.18,0.00020821,2]
[313862752,1707756454453,-2325.07,0.00020821,2]
[313862753,1707756454473,-1442.97,0.00020821,2]
[313862754,1707756454494,-3592.44,0.00020821,2]
[313862755,1707756454516,-1066.33,0.00020821,2]
[313862756,1707756454540,-500.0,0.00020821,2]
[313862757,1707756454563,-1016.86,0.00020821,2]
[313862758,1707756454586,-1774.88,0.00020821,2]
[313862759,1707756454608,-641.18,0.00020821,2]
[313862760,1707756454628,-602.74394297,0.00020822,2]
[313862761,1707756454650,-500.0,0.00020822,2]
[313862762,1707756454671,-500.0,0.00020822,2]
[313862763,1707756454692,-500.0,0.00020822,2]
[313862764,1707756454713,-500.0,0.00020822,2]
[313862765,1707756454735,-500.0,0.00020822,2]
[313862766,1707756454757,-500.0,0.00020822,2]
[313862767,1707756454778,-252.51574666,0.00020822,2]
[313862768,1707756454800,-500.0,0.00020822,2]
[313862769,1707756454827,-500.0,0.00020822,2]
[313862770,1707756454847,-500.0,0.00020822,2]
[313862771,1707756454869,-500.0,0.00020822,2]
[313862772,1707756454892,-500.0,0.00020822,2]
[313862773,1707756454913,-500.0,0.00020822,2]
[313862775,1707756454934,-500.0,0.00020822,2]
[313862776,1707756454954,-383.76465462,0.00020822,2]
[313862777,1707756454975,-500.0,0.00020822,2]
[313862778,1707756454996,-500.0,0.00020822,2]
[313862779,1707756455015,-500.0,0.00020822,2]
[313862780,1707756455037,-500.0,0.00020822,2]
[313862781,1707756455058,-500.0,0.00020822,2]
[313862782,1707756455079,-500.0,0.00020822,2]
[313862783,1707756455100,-500.0,0.00020822,2]
[313862784,1707756455120,-170.54605274,0.00020822,2]
[313862785,1707756455144,-276.95111504,0.00020822,2]
[313862786,1707756455165,-500.0,0.00020822,2]
[313862787,1707756455187,-500.0,0.00020822,2]
[313862788,1707756455207,-444.68462744,0.00020822,2]
[313862789,1707756455226,-500.0,0.00020822,2]
[313862790,1707756455247,-500.0,0.00020822,2]
[313862791,1707756455268,-500.0,0.00020822,2]
[313862792,1707756455288,-337.99125085,0.00020822,2]
[313862793,1707756455308,-500.0,0.00020822,2]
[313862794,1707756455328,-500.0,0.00020822,2]
[313862795,1707756455350,-500.0,0.00020822,2]